[Event "Titled Tuesday Blitz August 16 Early 2022"]
[White "Martinez Alcantara, Jose Eduardo"]
[Black "Beerdsen, Thomas"]
[WhiteFideId "3805662"]
[BlackFideId "1030108"]
[WhiteElo "2703"]
[BlackElo "2567"]
[Result "1-0"]
[Round "08"]
[TimeControl "180+1"]
[Date "2022.08.16"]
[WhiteClock "0:00:15"]
[BlackClock "0:00:08"]

1. e4 {[%clk 0:03:00]}  c5 {[%clk 0:02:59]} 2. Nf3 {[%clk 0:03:01]}  Nc6 {[%clk 0:02:59]} 3. c3 {[%clk 0:03:01]}  Nf6 {[%clk 0:02:59]} 4. Bd3 {[%clk 0:03:01]}  d5 {[%clk 0:02:58]} 5. e5 {[%clk 0:03:01]}  Ng4 {[%clk 0:02:53]} 6. Bb5 {[%clk 0:03:00]}  Bd7 {[%clk 0:02:48]} 7. Bxc6 {[%clk 0:02:47]}  bxc6 {[%clk 0:02:46]} 8. h3 {[%clk 0:02:39]}  Nh6 {[%clk 0:02:46]} 9. d3 {[%clk 0:02:40]}  e6 {[%clk 0:02:33]} 10. Qe2 {[%clk 0:02:37]}  Rb8 {[%clk 0:02:31]} 11. O-O {[%clk 0:02:20]}  Nf5 {[%clk 0:02:30]} 12. Bg5 {[%clk 0:02:08]}  Be7 {[%clk 0:02:28]} 13. Bxe7 {[%clk 0:02:08]}  Qxe7 {[%clk 0:02:29]} 14. b3 {[%clk 0:02:07]}  h5 {[%clk 0:02:26]} 15. Nh2 {[%clk 0:01:43]}  a5 {[%clk 0:02:22]} 16. Nd2 {[%clk 0:01:43]}  Bc8 {[%clk 0:02:22]} 17. Rfe1 {[%clk 0:01:36]}  Ba6 {[%clk 0:02:22]} 18. Ndf3 {[%clk 0:01:33]}  a4 {[%clk 0:02:14]} 19. bxa4 {[%clk 0:01:32]}  O-O {[%clk 0:02:13]} 20. Qd2 {[%clk 0:01:27]}  Rb6 {[%clk 0:02:03]} 21. Rab1 {[%clk 0:01:24]}  Rfb8 {[%clk 0:02:03]} 22. Rxb6 {[%clk 0:01:25]}  Rxb6 {[%clk 0:02:04]} 23. g3 {[%clk 0:01:19]}  Qd8 {[%clk 0:01:45]} 24. Kg2 {[%clk 0:01:14]}  Qb8 {[%clk 0:01:45]} 25. Re2 {[%clk 0:00:59]}  Rb1 {[%clk 0:01:42]} 26. g4 {[%clk 0:00:59]}  hxg4 {[%clk 0:01:39]} 27. hxg4 {[%clk 0:01:00]}  Nh6 {[%clk 0:01:35]} 28. Ng5 {[%clk 0:00:46]}  Qd8 {[%clk 0:01:15]} 29. f4 {[%clk 0:00:42]}  Qa5 {[%clk 0:01:10]} 30. Qc2 {[%clk 0:00:40]}  Qb6 {[%clk 0:01:04]} 31. Rf2 {[%clk 0:00:34]}  Bc8 {[%clk 0:00:42]} 32. d4 {[%clk 0:00:23]}  g6 {[%clk 0:00:33]} 33. dxc5 {[%clk 0:00:23]}  Qb8 {[%clk 0:00:32]} 34. Qd3 {[%clk 0:00:16]}  Ra1 {[%clk 0:00:25]} 35. Qh3 {[%clk 0:00:16]}  Kg7 {[%clk 0:00:20]} 36. Nhf3 {[%clk 0:00:16]}  Qb1 {[%clk 0:00:20]} 37. Kg3 {[%clk 0:00:16]}  Ba6 {[%clk 0:00:16]} 38. Rh2 {[%clk 0:00:16]}  Kf8 {[%clk 0:00:07]} 39. Qxh6+ {[%clk 0:00:16]}  Ke7 {[%clk 0:00:08]} 40. Qg7 {[%clk 0:00:15]} 1-0


[Site "https://www.chess.com"]

[Event "Titled Tuesday Blitz August 16 Early 2022"]
[White "Martinez, Shawn"]
[Black "Johnson, Ben"]
[WhiteFideId "2039770"]
[BlackFideId "2010917"]
[WhiteElo "2174"]
[BlackElo "2050"]
[Result "1-0"]
[Round "08"]
[TimeControl "180+2"]
[Date "2022.08.18"]
[WhiteClock "0:00:00"]
[BlackClock "0:00:00"]

1. e4 {[%clk 0:00:00]}  c5 {[%clk 0:00:00]} 2. Nc3 {[%clk 0:00:00]}  Nc6 {[%clk 0:00:00]} 3. Bb5 {[%clk 0:00:00]}  Nd4 {[%clk 0:00:00]} 4. Nf3 {[%clk 0:00:00]}  a6 {[%clk 0:00:00]} 5. Bd3 {[%clk 0:00:00]}  Nc6 {[%clk 0:00:00]} 6. O-O {[%clk 0:00:00]}  d6 {[%clk 0:00:00]} 7. h3 {[%clk 0:00:00]}  Nf6 {[%clk 0:00:00]} 8. Re1 {[%clk 0:00:00]}  e5 {[%clk 0:00:00]} 9. Ne2 {[%clk 0:00:00]}  g6 {[%clk 0:00:00]} 10. Ng3 {[%clk 0:00:00]}  Bg7 {[%clk 0:00:00]} 11. c3 {[%clk 0:00:00]}  O-O {[%clk 0:00:00]} 12. Bc2 {[%clk 0:00:00]}  Ne8 {[%clk 0:00:00]} 13. b3 {[%clk 0:00:00]}  Nc7 {[%clk 0:00:00]} 14. Bb2 {[%clk 0:00:00]}  Ne6 {[%clk 0:00:00]} 15. Ne2 {[%clk 0:00:00]}  Nf4 {[%clk 0:00:00]} 16. Nxf4 {[%clk 0:00:00]}  exf4 {[%clk 0:00:00]} 17. d4 {[%clk 0:00:00]}  cxd4 {[%clk 0:00:00]} 18. cxd4 {[%clk 0:00:00]}  g5 {[%clk 0:00:00]} 19. a3 {[%clk 0:00:00]}  h5 {[%clk 0:00:00]} 20. Qd3 {[%clk 0:00:00]}  g4 {[%clk 0:00:00]} 21. hxg4 {[%clk 0:00:00]}  hxg4 {[%clk 0:00:00]} 22. Nh2 {[%clk 0:00:00]}  Qh4 {[%clk 0:00:00]} 23. g3 {[%clk 0:00:00]}  fxg3 {[%clk 0:00:00]} 24. fxg3 {[%clk 0:00:00]}  Qh3 {[%clk 0:00:00]} 25. Rf1 {[%clk 0:00:00]}  Bd7 {[%clk 0:00:00]} 26. Rf2 {[%clk 0:00:00]}  Nxd4 {[%clk 0:00:00]} 27. Bxd4 {[%clk 0:00:00]}  Bxd4 {[%clk 0:00:00]} 28. Qxd4 {[%clk 0:00:00]}  Qxg3+ {[%clk 0:00:00]} 29. Rg2 {[%clk 0:00:00]}  Qh3 {[%clk 0:00:00]} 30. Nxg4 {[%clk 0:00:00]}  Bxg4 {[%clk 0:00:00]} 31. Bd1 {[%clk 0:00:00]}  f5 {[%clk 0:00:00]} 32. exf5 {[%clk 0:00:00]}  Kf7 {[%clk 0:00:00]} 33. Bxg4 {[%clk 0:00:00]}  Qh6 {[%clk 0:00:00]} 34. Re1 {[%clk 0:00:00]}  Rg8 {[%clk 0:00:00]} 35. Qd5+ {[%clk 0:00:00]}  Kf8 {[%clk 0:00:00]} 36. Qe6 {[%clk 0:00:00]}  Qh4 {[%clk 0:00:00]} 37. Qxd6+ {[%clk 0:00:00]}  Kf7 {[%clk 0:00:00]} 38. Qd5+ {[%clk 0:00:00]}  Kf8 {[%clk 0:00:00]} 39. Qd6+ {[%clk 0:00:00]}  Kf7 {[%clk 0:00:00]} 40. Qe6+ {[%clk 0:00:00]}  Kf8 {[%clk 0:00:00]} 41. Bf3 {[%clk 0:00:00]}  Rxg2+ {[%clk 0:00:00]} 42. Bxg2 {[%clk 0:00:00]}  Qd4+ {[%clk 0:00:00]} 43. Kf1 {[%clk 0:00:00]}  Qf4+ {[%clk 0:00:00]} 44. Kg1 {[%clk 0:00:00]}  Qd4+ {[%clk 0:00:00]} 45. Re3 {[%clk 0:00:00]}  Qd1+ {[%clk 0:00:00]} 46. Kh2 {[%clk 0:00:00]}  Qh5+ {[%clk 0:00:00]} 47. Bh3 {[%clk 0:00:00]}  Re8 {[%clk 0:00:00]} 48. Qxe8+ {[%clk 0:00:00]}  Qxe8 {[%clk 0:00:00]} 49. Rxe8+ {[%clk 0:00:00]}  Kxe8 {[%clk 0:00:00]} 50. Kg3 {[%clk 0:00:00]}  Kf7 {[%clk 0:00:00]} 51. Kf4 {[%clk 0:00:00]} 1-0


[Site "https://www.chess.com"]

[Event "Titled Tuesday Blitz August 16 Early 2022"]
[White "Mika, Tomasz"]
[Black "Ronka, Erik"]
[WhiteFideId "1132970"]
[BlackFideId "505080"]
[WhiteElo "2157"]
[BlackElo "2248"]
[Result "1-0"]
[Round "08"]
[TimeControl "180+2"]
[Date "2022.08.18"]
[WhiteClock "0:00:00"]
[BlackClock "0:00:00"]

1. c4 {[%clk 0:00:00]}  e5 {[%clk 0:00:00]} 2. g3 {[%clk 0:00:00]}  Nc6 {[%clk 0:00:00]} 3. Bg2 {[%clk 0:00:00]}  g6 {[%clk 0:00:00]} 4. e3 {[%clk 0:00:00]}  Bg7 {[%clk 0:00:00]} 5. Ne2 {[%clk 0:00:00]}  d6 {[%clk 0:00:00]} 6. O-O {[%clk 0:00:00]}  Nf6 {[%clk 0:00:00]} 7. d4 {[%clk 0:00:00]}  O-O {[%clk 0:00:00]} 8. Nbc3 {[%clk 0:00:00]}  Bf5 {[%clk 0:00:00]} 9. b3 {[%clk 0:00:00]}  Re8 {[%clk 0:00:00]} 10. Bb2 {[%clk 0:00:00]}  exd4 {[%clk 0:00:00]} 11. Nxd4 {[%clk 0:00:00]}  Nxd4 {[%clk 0:00:00]} 12. exd4 {[%clk 0:00:00]}  Ne4 {[%clk 0:00:00]} 13. Nd5 {[%clk 0:00:00]}  c6 {[%clk 0:00:00]} 14. Ne3 {[%clk 0:00:00]}  Bd7 {[%clk 0:00:00]} 15. Qc2 {[%clk 0:00:00]}  Nf6 {[%clk 0:00:00]} 16. d5 {[%clk 0:00:00]}  c5 {[%clk 0:00:00]} 17. Rfe1 {[%clk 0:00:00]}  Qc7 {[%clk 0:00:00]} 18. Re2 {[%clk 0:00:00]}  Re7 {[%clk 0:00:00]} 19. Rae1 {[%clk 0:00:00]}  Rae8 {[%clk 0:00:00]} 20. h3 {[%clk 0:00:00]}  Bc8 {[%clk 0:00:00]} 21. g4 {[%clk 0:00:00]}  a6 {[%clk 0:00:00]} 22. a4 {[%clk 0:00:00]}  Qd8 {[%clk 0:00:00]} 23. Bc3 {[%clk 0:00:00]}  Bd7 {[%clk 0:00:00]} 24. Qb2 {[%clk 0:00:00]}  Re5 {[%clk 0:00:00]} 25. f4 {[%clk 0:00:00]}  Re4 {[%clk 0:00:00]} 26. Bxe4 {[%clk 0:00:00]}  Rxe4 {[%clk 0:00:00]} 27. Ng2 {[%clk 0:00:00]}  Rxe2 {[%clk 0:00:00]} 28. Qxe2 {[%clk 0:00:00]}  Kf8 {[%clk 0:00:00]} 29. Qb2 {[%clk 0:00:00]}  Ne8 {[%clk 0:00:00]} 30. Rxe8+ {[%clk 0:00:00]}  Qxe8 {[%clk 0:00:00]} 31. Bxg7+ {[%clk 0:00:00]}  Kg8 {[%clk 0:00:00]} 32. Bc3 {[%clk 0:00:00]} 1-0


[Site "https://www.chess.com"]

[Event "Titled Tuesday Blitz August 16 Early 2022"]
[White "Mirimanian, Hayk"]
[Black "Harshavardhan G B"]
[WhiteFideId "4700180"]
[BlackFideId "25059009"]
[WhiteElo "2280"]
[BlackElo "1890"]
[Result "0-1"]
[Round "08"]
[TimeControl "180+2"]
[Date "2022.08.18"]
[WhiteClock "0:00:00"]
[BlackClock "0:00:00"]

1. e4 {[%clk 0:00:00]}  c5 {[%clk 0:00:00]} 2. Nf3 {[%clk 0:00:00]}  d6 {[%clk 0:00:00]} 3. d4 {[%clk 0:00:00]}  cxd4 {[%clk 0:00:00]} 4. Nxd4 {[%clk 0:00:00]}  Nf6 {[%clk 0:00:00]} 5. Nc3 {[%clk 0:00:00]}  a6 {[%clk 0:00:00]} 6. g3 {[%clk 0:00:00]}  e5 {[%clk 0:00:00]} 7. Nb3 {[%clk 0:00:00]}  Be7 {[%clk 0:00:00]} 8. Bg2 {[%clk 0:00:00]}  O-O {[%clk 0:00:00]} 9. a4 {[%clk 0:00:00]}  Nc6 {[%clk 0:00:00]} 10. O-O {[%clk 0:00:00]}  Be6 {[%clk 0:00:00]} 11. h3 {[%clk 0:00:00]}  Rc8 {[%clk 0:00:00]} 12. Nd5 {[%clk 0:00:00]}  Bxd5 {[%clk 0:00:00]} 13. exd5 {[%clk 0:00:00]}  Nb8 {[%clk 0:00:00]} 14. a5 {[%clk 0:00:00]}  Nfd7 {[%clk 0:00:00]} 15. h4 {[%clk 0:00:00]}  f5 {[%clk 0:00:00]} 16. Qe2 {[%clk 0:00:00]}  Nf6 {[%clk 0:00:00]} 17. c4 {[%clk 0:00:00]}  Nbd7 {[%clk 0:00:00]} 18. Bd2 {[%clk 0:00:00]}  e4 {[%clk 0:00:00]} 19. Nd4 {[%clk 0:00:00]}  Ne5 {[%clk 0:00:00]} 20. Ne6 {[%clk 0:00:00]}  Qd7 {[%clk 0:00:00]} 21. Nxf8 {[%clk 0:00:00]}  Kxf8 {[%clk 0:00:00]} 22. b3 {[%clk 0:00:00]}  Bd8 {[%clk 0:00:00]} 23. Be3 {[%clk 0:00:00]}  Qf7 {[%clk 0:00:00]} 24. Bd4 {[%clk 0:00:00]}  Qg6 {[%clk 0:00:00]} 25. c5 {[%clk 0:00:00]}  f4 {[%clk 0:00:00]} 26. Qc2 {[%clk 0:00:00]}  fxg3 {[%clk 0:00:00]} 27. fxg3 {[%clk 0:00:00]}  Qxg3 {[%clk 0:00:00]} 28. Qf2 {[%clk 0:00:00]}  Nf3+ {[%clk 0:00:00]} 29. Qxf3 {[%clk 0:00:00]}  exf3 {[%clk 0:00:00]} 30. Rxf3 {[%clk 0:00:00]}  Qxh4 {[%clk 0:00:00]} 31. Bf2 {[%clk 0:00:00]}  Qb4 {[%clk 0:00:00]} 32. Rc1 {[%clk 0:00:00]}  Bxa5 {[%clk 0:00:00]} 33. c6 {[%clk 0:00:00]}  Bb6 {[%clk 0:00:00]} 34. Bxb6 {[%clk 0:00:00]}  Qxb6+ {[%clk 0:00:00]} 35. Kh1 {[%clk 0:00:00]}  Kg8 {[%clk 0:00:00]} 36. Bh3 {[%clk 0:00:00]}  Rc7 {[%clk 0:00:00]} 37. Be6+ {[%clk 0:00:00]}  Kf8 {[%clk 0:00:00]} 38. Rfc3 {[%clk 0:00:00]}  bxc6 {[%clk 0:00:00]} 39. Rxc6 {[%clk 0:00:00]}  Rxc6 {[%clk 0:00:00]} 40. dxc6 {[%clk 0:00:00]}  Ne8 {[%clk 0:00:00]} 41. Rf1+ {[%clk 0:00:00]}  Ke7 {[%clk 0:00:00]} 42. Bd5 {[%clk 0:00:00]}  Nc7 {[%clk 0:00:00]} 43. Rf7+ {[%clk 0:00:00]}  Ke8 {[%clk 0:00:00]} 44. Bc4 {[%clk 0:00:00]}  Qxc6+ {[%clk 0:00:00]} 0-1


[Site "https://www.chess.com"]

[Event "Titled Tuesday Blitz August 16 Early 2022"]
[White "Mouhamad, Joachim"]
[Black "Jiganchine, Roman"]
[WhiteFideId "656410"]
[BlackFideId "2603667"]
[WhiteElo "2147"]
[BlackElo "2205"]
[Result "1-0"]
[Round "08"]
[TimeControl "180+2"]
[Date "2022.08.18"]
[WhiteClock "0:00:00"]
[BlackClock "0:00:00"]

1. e4 {[%clk 0:00:00]}  c6 {[%clk 0:00:00]} 2. d4 {[%clk 0:00:00]}  d5 {[%clk 0:00:00]} 3. exd5 {[%clk 0:00:00]}  cxd5 {[%clk 0:00:00]} 4. Bd3 {[%clk 0:00:00]}  Nc6 {[%clk 0:00:00]} 5. c3 {[%clk 0:00:00]}  Nf6 {[%clk 0:00:00]} 6. Bf4 {[%clk 0:00:00]}  Bg4 {[%clk 0:00:00]} 7. Qb3 {[%clk 0:00:00]}  Qc8 {[%clk 0:00:00]} 8. Nd2 {[%clk 0:00:00]}  e6 {[%clk 0:00:00]} 9. Ngf3 {[%clk 0:00:00]}  Be7 {[%clk 0:00:00]} 10. O-O {[%clk 0:00:00]}  O-O {[%clk 0:00:00]} 11. Ne5 {[%clk 0:00:00]}  Nxe5 {[%clk 0:00:00]} 12. Bxe5 {[%clk 0:00:00]}  Bh5 {[%clk 0:00:00]} 13. f4 {[%clk 0:00:00]}  Bg6 {[%clk 0:00:00]} 14. f5 {[%clk 0:00:00]}  exf5 {[%clk 0:00:00]} 15. Bxf6 {[%clk 0:00:00]}  Bxf6 {[%clk 0:00:00]} 16. Qxd5 {[%clk 0:00:00]}  Qe6 {[%clk 0:00:00]} 17. Qf3 {[%clk 0:00:00]}  Rfe8 {[%clk 0:00:00]} 18. Bxf5 {[%clk 0:00:00]}  Qb6 {[%clk 0:00:00]} 19. Bxg6 {[%clk 0:00:00]}  hxg6 {[%clk 0:00:00]} 20. Nb3 {[%clk 0:00:00]}  a5 {[%clk 0:00:00]} 21. Rf2 {[%clk 0:00:00]}  a4 {[%clk 0:00:00]} 22. Nc5 {[%clk 0:00:00]}  a3 {[%clk 0:00:00]} 23. b4 {[%clk 0:00:00]}  Re7 {[%clk 0:00:00]} 24. Re2 {[%clk 0:00:00]}  Rae8 {[%clk 0:00:00]} 25. Rae1 {[%clk 0:00:00]}  Rxe2 {[%clk 0:00:00]} 26. Rxe2 {[%clk 0:00:00]}  Rxe2 {[%clk 0:00:00]} 27. Qxe2 {[%clk 0:00:00]}  Bxd4+ {[%clk 0:00:00]} 28. cxd4 {[%clk 0:00:00]}  Qxb4 {[%clk 0:00:00]} 29. Nb3 {[%clk 0:00:00]}  Qc3 {[%clk 0:00:00]} 30. h4 {[%clk 0:00:00]}  Qb2 {[%clk 0:00:00]} 31. Qxb2 {[%clk 0:00:00]}  axb2 {[%clk 0:00:00]} 32. Nd2 {[%clk 0:00:00]} 1-0


[Site "https://www.chess.com"]

[Event "Titled Tuesday Blitz August 16 Early 2022"]
[White "Munkhgal, Gombosuren"]
[Black "Hansen, Eric"]
[WhiteFideId "4901266"]
[BlackFideId "2606771"]
[WhiteElo "2576"]
[BlackElo "2568"]
[Result "0-1"]
[Round "08"]
[TimeControl "180+1"]
[Date "2022.08.16"]
[WhiteClock "0:00:01"]
[BlackClock "0:00:14"]

1. d4 {[%clk 0:03:00]}  Nf6 {[%clk 0:03:00]} 2. Bf4 {[%clk 0:03:01]}  g6 {[%clk 0:03:00]} 3. Nc3 {[%clk 0:03:00]}  d5 {[%clk 0:03:01]} 4. e3 {[%clk 0:03:01]}  Bg7 {[%clk 0:03:01]} 5. h4 {[%clk 0:03:01]}  h5 {[%clk 0:03:01]} 6. Nf3 {[%clk 0:03:02]}  Bg4 {[%clk 0:03:01]} 7. Be2 {[%clk 0:03:02]}  Bxf3 {[%clk 0:02:56]} 8. Bxf3 {[%clk 0:03:02]}  c6 {[%clk 0:02:56]} 9. O-O {[%clk 0:02:56]}  Nbd7 {[%clk 0:02:56]} 10. e4 {[%clk 0:02:54]}  e6 {[%clk 0:02:50]} 11. Re1 {[%clk 0:02:49]}  Nb6 {[%clk 0:02:44]} 12. Be5 {[%clk 0:02:32]}  O-O {[%clk 0:02:38]} 13. Bxf6 {[%clk 0:02:30]}  Qxf6 {[%clk 0:02:37]} 14. e5 {[%clk 0:02:17]}  Qxh4 {[%clk 0:02:37]} 15. g3 {[%clk 0:02:16]}  Qe7 {[%clk 0:02:35]} 16. Ne2 {[%clk 0:02:15]}  Bh6 {[%clk 0:02:33]} 17. c3 {[%clk 0:02:14]}  f6 {[%clk 0:02:29]} 18. exf6 {[%clk 0:02:03]}  Qxf6 {[%clk 0:02:27]} 19. Bg2 {[%clk 0:01:50]}  Qxf2+ {[%clk 0:02:24]} 20. Kh2 {[%clk 0:01:50]}  Nc4 {[%clk 0:02:24]} 21. Qd3 {[%clk 0:01:33]}  Rf5 {[%clk 0:02:21]} 22. Ng1 {[%clk 0:01:17]}  h4 {[%clk 0:01:21]} 23. g4 {[%clk 0:00:27]}  Rf6 {[%clk 0:00:51]} 24. Nh3 {[%clk 0:00:22]}  Qg3+ {[%clk 0:00:42]} 25. Qxg3 {[%clk 0:00:23]}  hxg3+ {[%clk 0:00:43]} 26. Kxg3 {[%clk 0:00:23]}  g5 {[%clk 0:00:29]} 27. Re2 {[%clk 0:00:23]}  Re8 {[%clk 0:00:26]} 28. Rae1 {[%clk 0:00:23]}  Kg7 {[%clk 0:00:25]} 29. b3 {[%clk 0:00:24]}  Nd6 {[%clk 0:00:26]} 30. Re5 {[%clk 0:00:23]}  Nf7 {[%clk 0:00:27]} 31. R5e2 {[%clk 0:00:22]}  Kg8 {[%clk 0:00:26]} 32. Re3 {[%clk 0:00:18]}  Bf8 {[%clk 0:00:26]} 33. Rf3 {[%clk 0:00:16]}  Bd6+ {[%clk 0:00:27]} 34. Kf2 {[%clk 0:00:17]}  Kg7 {[%clk 0:00:26]} 35. Rxf6 {[%clk 0:00:16]}  Kxf6 {[%clk 0:00:26]} 36. Ke2 {[%clk 0:00:13]}  Rh8 {[%clk 0:00:24]} 37. Rf1+ {[%clk 0:00:13]}  Ke7 {[%clk 0:00:25]} 38. Kd2 {[%clk 0:00:09]}  Rh4 {[%clk 0:00:25]} 39. Nf2 {[%clk 0:00:02]}  Bg3 {[%clk 0:00:24]} 40. Ke2 {[%clk 0:00:01]}  Bxf2 {[%clk 0:00:21]} 41. Rxf2 {[%clk 0:00:02]}  Rxg4 {[%clk 0:00:22]} 42. Bf3 {[%clk 0:00:02]}  Rh4 {[%clk 0:00:20]} 43. Rg2 {[%clk 0:00:03]}  Kf6 {[%clk 0:00:19]} 44. Bg4 {[%clk 0:00:03]}  e5 {[%clk 0:00:18]} 45. Rf2+ {[%clk 0:00:03]}  Ke7 {[%clk 0:00:19]} 46. Bf5 {[%clk 0:00:02]}  exd4 {[%clk 0:00:18]} 47. cxd4 {[%clk 0:00:01]}  Rxd4 {[%clk 0:00:19]} 48. Bg6 {[%clk 0:00:01]}  Ne5 {[%clk 0:00:19]} 49. Bc2 {[%clk 0:00:01]}  Rf4 {[%clk 0:00:19]} 50. Rh2 {[%clk 0:00:01]}  Rh4 {[%clk 0:00:20]} 51. Rg2 {[%clk 0:00:02]}  Kf6 {[%clk 0:00:20]} 52. Rf2+ {[%clk 0:00:02]}  Rf4 {[%clk 0:00:20]} 53. Rh2 {[%clk 0:00:02]}  Ng4 {[%clk 0:00:21]} 54. Rh8 {[%clk 0:00:02]}  Rf2+ {[%clk 0:00:21]} 55. Kd3 {[%clk 0:00:03]}  c5 {[%clk 0:00:21]} 56. Bd1 {[%clk 0:00:02]}  Ne5+ {[%clk 0:00:21]} 57. Ke3 {[%clk 0:00:03]}  Rxa2 {[%clk 0:00:20]} 58. Rf8+ {[%clk 0:00:03]}  Ke7 {[%clk 0:00:21]} 59. Rb8 {[%clk 0:00:03]}  b6 {[%clk 0:00:17]} 60. Rb7+ {[%clk 0:00:03]}  Kf6 {[%clk 0:00:17]} 61. Bh5 {[%clk 0:00:02]}  g4 {[%clk 0:00:15]} 62. Be8 {[%clk 0:00:03]}  g3 {[%clk 0:00:15]} 63. Kf4 {[%clk 0:00:01]}  g2 {[%clk 0:00:14]} 0-1


[Site "https://www.chess.com"]

[Event "Titled Tuesday Blitz August 16 Early 2022"]
[White "Nazari, Arad"]
[Black "Iljin, Timofey"]
[WhiteFideId "12577324"]
[BlackFideId "14110180"]
[WhiteElo "2129"]
[BlackElo "2404"]
[Result "1-0"]
[Round "08"]
[TimeControl "180+1"]
[Date "2022.08.16"]
[WhiteClock "0:01:13"]
[BlackClock "0:00:01"]

1. e4 {[%clk 0:03:00]}  d5 {[%clk 0:03:00]} 2. exd5 {[%clk 0:03:00]}  Nf6 {[%clk 0:03:00]} 3. d4 {[%clk 0:02:59]}  Bg4 {[%clk 0:03:00]} 4. f3 {[%clk 0:02:58]}  Bf5 {[%clk 0:03:00]} 5. g4 {[%clk 0:02:59]}  Bg6 {[%clk 0:03:00]} 6. c4 {[%clk 0:02:59]}  e6 {[%clk 0:03:00]} 7. h4 {[%clk 0:02:55]}  exd5 {[%clk 0:02:51]} 8. Nc3 {[%clk 0:02:52]}  Bb4 {[%clk 0:02:48]} 9. h5 {[%clk 0:02:49]}  Be4 {[%clk 0:02:33]} 10. fxe4 {[%clk 0:02:14]}  Nxe4 {[%clk 0:02:33]} 11. Bd2 {[%clk 0:02:14]}  Nxd2 {[%clk 0:02:25]} 12. Qxd2 {[%clk 0:02:13]}  O-O {[%clk 0:02:26]} 13. O-O-O {[%clk 0:02:09]}  Nd7 {[%clk 0:02:20]} 14. c5 {[%clk 0:02:04]}  Nf6 {[%clk 0:02:17]} 15. Bd3 {[%clk 0:01:56]}  b6 {[%clk 0:02:13]} 16. g5 {[%clk 0:01:49]}  Ne4 {[%clk 0:02:01]} 17. Bxe4 {[%clk 0:01:48]}  dxe4 {[%clk 0:02:02]} 18. g6 {[%clk 0:01:49]}  bxc5 {[%clk 0:01:52]} 19. gxh7+ {[%clk 0:01:34]}  Kh8 {[%clk 0:01:43]} 20. dxc5 {[%clk 0:01:32]}  Qe7 {[%clk 0:01:42]} 21. h6 {[%clk 0:01:26]}  g6 {[%clk 0:01:35]} 22. Qd4+ {[%clk 0:01:26]}  f6 {[%clk 0:01:34]} 23. Qxb4 {[%clk 0:01:26]}  Rab8 {[%clk 0:01:20]} 24. Qxe4 {[%clk 0:01:18]}  Qxc5 {[%clk 0:01:19]} 25. Qxg6 {[%clk 0:01:13]}  Qe3+ {[%clk 0:01:03]} 26. Rd2 {[%clk 0:01:13]}  Qe1+ {[%clk 0:00:38]} 27. Nd1 {[%clk 0:01:13]}  Qe7 {[%clk 0:00:37]} 28. Qg7+ {[%clk 0:01:10]}  Qxg7 {[%clk 0:00:37]} 29. hxg7+ {[%clk 0:01:11]}  Kxg7 {[%clk 0:00:38]} 30. Rd7+ {[%clk 0:01:11]}  Kg6 {[%clk 0:00:38]} 31. Nf3 {[%clk 0:01:10]}  Rh8 {[%clk 0:00:37]} 32. Nh4+ {[%clk 0:01:09]}  Kg5 {[%clk 0:00:36]} 33. Rg7+ {[%clk 0:01:09]}  Kf4 {[%clk 0:00:36]} 34. Ng6+ {[%clk 0:01:09]}  Ke4 {[%clk 0:00:34]} 35. Nxh8 {[%clk 0:01:10]}  Rxh8 {[%clk 0:00:35]} 36. Rg8 {[%clk 0:01:10]}  Rxh7 {[%clk 0:00:36]} 37. Rxh7 {[%clk 0:01:11]}  c5 {[%clk 0:00:37]} 38. Re7+ {[%clk 0:01:11]}  Kd5 {[%clk 0:00:36]} 39. Nc3+ {[%clk 0:01:10]}  Kc6 {[%clk 0:00:37]} 40. Re6+ {[%clk 0:01:10]}  Kd7 {[%clk 0:00:37]} 41. Rge8 {[%clk 0:01:11]}  c4 {[%clk 0:00:35]} 42. R8e7+ {[%clk 0:01:11]}  Kd8 {[%clk 0:00:35]} 43. Rh7 {[%clk 0:01:12]}  f5 {[%clk 0:00:35]} 44. Rg6 {[%clk 0:01:12]}  a5 {[%clk 0:00:01]} 45. Rg8# {[%clk 0:01:13]} 1-0


[Site "https://www.chess.com"]

[Event "Titled Tuesday Blitz August 16 Early 2022"]
[White "O`Gorman, Tom"]
[Black "Carrasco Miranda, Andres"]
[WhiteFideId "2508249"]
[BlackFideId "3405990"]
[WhiteElo "2270"]
[BlackElo "2177"]
[Result "1-0"]
[Round "08"]
[TimeControl "180+2"]
[Date "2022.08.18"]
[WhiteClock "0:00:00"]
[BlackClock "0:00:00"]

1. Nf3 {[%clk 0:00:00]}  Nf6 {[%clk 0:00:00]} 2. g3 {[%clk 0:00:00]}  g6 {[%clk 0:00:00]} 3. Bg2 {[%clk 0:00:00]}  Bg7 {[%clk 0:00:00]} 4. O-O {[%clk 0:00:00]}  O-O {[%clk 0:00:00]} 5. d4 {[%clk 0:00:00]}  d5 {[%clk 0:00:00]} 6. c4 {[%clk 0:00:00]}  c6 {[%clk 0:00:00]} 7. cxd5 {[%clk 0:00:00]}  cxd5 {[%clk 0:00:00]} 8. Nc3 {[%clk 0:00:00]}  Nc6 {[%clk 0:00:00]} 9. Ne5 {[%clk 0:00:00]}  Nd7 {[%clk 0:00:00]} 10. f4 {[%clk 0:00:00]}  e6 {[%clk 0:00:00]} 11. e4 {[%clk 0:00:00]}  dxe4 {[%clk 0:00:00]} 12. Bxe4 {[%clk 0:00:00]}  Qb6 {[%clk 0:00:00]} 13. Nxc6 {[%clk 0:00:00]}  bxc6 {[%clk 0:00:00]} 14. Be3 {[%clk 0:00:00]}  Nf6 {[%clk 0:00:00]} 15. Bg2 {[%clk 0:00:00]}  Nd5 {[%clk 0:00:00]} 16. Bf2 {[%clk 0:00:00]}  Qxb2 {[%clk 0:00:00]} 17. Na4 {[%clk 0:00:00]}  Qa3 {[%clk 0:00:00]} 18. Rc1 {[%clk 0:00:00]}  Ba6 {[%clk 0:00:00]} 19. Re1 {[%clk 0:00:00]}  Bb5 {[%clk 0:00:00]} 20. Nc5 {[%clk 0:00:00]}  Nc3 {[%clk 0:00:00]} 21. Qd2 {[%clk 0:00:00]}  Ne2+ {[%clk 0:00:00]} 22. Rxe2 {[%clk 0:00:00]}  Bxe2 {[%clk 0:00:00]} 23. Rc3 {[%clk 0:00:00]}  Qb4 {[%clk 0:00:00]} 24. a3 {[%clk 0:00:00]}  Qb5 {[%clk 0:00:00]} 25. Rb3 {[%clk 0:00:00]}  Qc4 {[%clk 0:00:00]} 26. Rb4 {[%clk 0:00:00]}  Rad8 {[%clk 0:00:00]} 27. Rxc4 {[%clk 0:00:00]}  Bxc4 {[%clk 0:00:00]} 28. Bxc6 {[%clk 0:00:00]}  Rc8 {[%clk 0:00:00]} 29. Bf3 {[%clk 0:00:00]}  Rfd8 {[%clk 0:00:00]} 30. Qb4 {[%clk 0:00:00]} 1-0


[Site "https://www.chess.com"]